bitfinex/quotes_BTCUSD_20250205
["timestamp","ask_amount","ask_price","bid_price","bid_amount"]
[1738716579879,0.18754098,98198.0,98197.0,0.00022449]
[1738716580110,0.18754098,98198.0,98197.0,0.00122449]
[1738716580449,0.16454098,98198.0,98197.0,0.00022449]
[1738716580648,0.16454098,98198.0,98197.0,0.20891294]
[1738716581946,0.16654098,98198.0,98197.0,0.12911294]
[1738716582299,0.16454098,98198.0,98197.0,0.12911294]
[1738716583367,0.22560098,98198.0,98197.0,0.12911294]
[1738716583712,0.22560098,98198.0,98197.0,0.13011294]
[1738716584323,0.22560098,98198.0,98197.0,0.12911294]
[1738716584749,0.22560098,98198.0,98197.0,0.13011294]
[1738716587878,0.22560098,98198.0,98197.0,0.12911294]
[1738716588765,0.21287562,98198.0,98197.0,0.12911294]
[1738716589750,0.21287562,98198.0,98197.0,0.13011294]
[1738716590110,0.21287562,98198.0,98197.0,0.12911294]
[1738716590314,0.24335192,98198.0,98197.0,0.12911294]
[1738716590551,0.24335192,98198.0,98197.0,0.13011294]
[1738716591517,0.21287562,98198.0,98197.0,0.13011294]
[1738716592712,0.21287562,98198.0,98197.0,0.12911294]
[1738716593072,0.21287562,98198.0,98197.0,0.13011294]
[1738716595058,0.21287562,98198.0,98197.0,0.00790994]
[1738716595408,0.21287562,98198.0,98197.0,0.00122449]
[1738716595409,0.33507762,98198.0,98197.0,0.00122449]
[1738716595609,0.35807762,98198.0,98197.0,0.00790994]
[1738716595810,0.84747762,98198.0,98197.0,0.00122449]
[1738716595972,0.87924511,98198.0,98197.0,0.00122449]
[1738716596172,2.36924511,98198.0,98197.0,0.00122449]
[1738716596372,0.86924511,98198.0,98197.0,0.00022449]
[1738716596577,0.87924511,98198.0,98197.0,0.00122449]
[1738716596779,0.01,98194.0,98168.0,0.00022449]
[1738716596978,0.06106,98169.0,98168.0,0.00022449]
[1738716597239,0.16344506,98169.0,98168.0,0.00022449]
[1738716597435,0.24860391,98169.0,98168.0,0.00022449]
[1738716598203,0.22560391,98169.0,98168.0,0.00746148]
[1738716598427,0.22560391,98169.0,98168.0,0.00646148]
[1738716598900,0.22560391,98169.0,98168.0,0.12970048]
[1738716599103,0.22560391,98169.0,98168.0,0.12870048]
[1738716599749,0.06215885,98169.0,98168.0,0.12870048]
[1738716599920,0.06215885,98169.0,98168.0,0.12970048]
[1738716600125,0.04943056,98169.0,98168.0,0.12970048]
[1738716600583,0.15181562,98169.0,98168.0,0.12970048]
[1738716601089,0.15181562,98169.0,98168.0,0.13666148]
[1738716601090,0.04943056,98169.0,98168.0,0.13666148]
[1738716601281,0.04943056,98169.0,98168.0,0.25890048]
[1738716601470,0.06106,98198.0,98182.0,0.0829]
[1738716601471,0.09123166,98184.0,98182.0,0.0829]
[1738716601614,0.09123166,98184.0,98183.0,0.12222]
[1738716601815,0.09123166,98184.0,98183.0,0.12847933]
[1738716602218,0.11025308,98184.0,98183.0,0.12847933]
[1738716602448,0.21263814,98184.0,98183.0,0.12847933]
[1738716603020,0.21263814,98184.0,98183.0,0.00625933]
[1738716603413,0.21263814,98184.0,98182.0,0.122221]
[1738716603635,0.10238506,98183.0,98182.0,0.122221]
[1738716603889,0.10238506,98183.0,98172.0,0.122234]
[1738716604094,0.10238506,98183.0,98181.0,0.122222]
[1738716604498,0.01902142,98182.0,98181.0,0.122222]
[1738716605037,0.01902142,98182.0,98181.0,0.12344417]
[1738716605248,0.01902142,98182.0,98181.0,0.201622]
[1738716605651,0.0001069,98208.0,98194.0,0.122207]
[1738716605852,0.0001069,98208.0,98203.0,0.122195]
[1738716605853,0.15,98206.0,98203.0,0.122195]
[1738716606018,0.15,98204.0,98203.0,0.122195]
[1738716606220,0.0001069,98208.0,98203.0,0.246195]
[1738716606425,0.0001069,98208.0,98207.0,0.12219]
[1738716606630,0.0001069,98208.0,98207.0,0.12341176]
[1738716606853,0.0001069,98208.0,98207.0,0.12841039]
[1738716608063,0.0001069,98208.0,98207.0,0.12941039]
[1738716608413,0.0001069,98208.0,98207.0,0.13063211]
[1738716608565,0.0061069,98208.0,98207.0,0.13063211]
[1738716608768,0.0001069,98208.0,98207.0,0.12941039]
[1738716608969,0.0001069,98208.0,98207.0,0.13063211]
[1738716609578,0.0001069,98208.0,98207.0,0.20190037]
[1738716609778,0.0001069,98208.0,98207.0,0.13063211]
[1738716610186,0.0011069,98208.0,98207.0,0.13063211]
[1738716611359,0.0011069,98208.0,98207.0,0.12941039]
[1738716612304,0.0011069,98208.0,98207.0,0.13063211]
[1738716614241,0.0011069,98208.0,98207.0,0.12941039]
[1738716614446,0.0011069,98208.0,98207.0,0.13063216]
[1738716614852,0.0011069,98208.0,98207.0,0.12941039]
[1738716616312,0.0011069,98208.0,98207.0,0.13063218]
[1738716616762,0.0011069,98208.0,98207.0,0.12941039]
[1738716617881,0.0011069,98208.0,98207.0,0.00722039]
[1738716618016,0.16455196,98208.0,98207.0,0.00722039]
[1738716618223,0.16455196,98208.0,98207.0,0.001]
[1738716618841,0.16455196,98208.0,98207.0,0.00673243]
[1738716619106,0.31455196,98208.0,98207.0,0.001]
[1738716619297,0.31455196,98208.0,98207.0,0.00673243]
[1738716619491,0.35655047,98208.0,98207.0,0.001]
[1738716620478,0.06106,98194.0,98185.0,0.162956]
[1738716620681,0.06106,98192.0,98185.0,0.162956]
[1738716620859,0.06106,98190.0,98186.0,0.00573265]
[1738716621062,0.16344506,98189.0,98188.0,0.122214]
[1738716621211,0.16344506,98189.0,98186.0,0.12794865]
[1738716621413,0.16344506,98189.0,98173.0,0.0827]
[1738716621414,0.16344506,98189.0,98183.0,0.122219]
[1738716621649,0.16344506,98189.0,98187.0,0.00573265]
[1738716621822,0.16344506,98189.0,98186.0,0.122216]
[1738716622015,0.16344506,98189.0,98188.0,0.00573265]
[1738716622209,0.16344506,98189.0,98185.0,0.122217]
[1738716622516,0.16344506,98189.0,98187.0,0.122215]
[1738716622715,0.16344506,98189.0,98188.0,0.00573265]
[1738716623027,0.122217,98186.0,98177.0,0.162969]
[1738716623348,0.10238506,98185.0,98177.0,0.162969]
[1738716623684,0.122219,98184.0,98176.0,0.122228]
[1738716623892,0.10238506,98183.0,98176.0,0.122228]
[1738716624125,0.10238506,98183.0,98174.0,0.162975]
[1738716624126,0.10238506,98183.0,98177.0,0.122227]
[1738716624300,0.10238506,98183.0,98177.0,0.002]
[1738716624456,0.15169109,98183.0,98177.0,0.16497]
[1738716624654,0.15169109,98183.0,98177.0,0.16297]
[1738716625064,0.15169109,98183.0,98177.0,0.001]
[1738716625269,0.15169109,98183.0,98181.0,0.122223]
[1738716625955,0.04930603,98182.0,98177.0,0.003]
[1738716626169,0.04930603,98182.0,98180.0,0.122224]
[1738716626369,0.04930603,98182.0,98181.0,0.38298506]
[1738716626575,0.09137905,98208.0,98199.0,0.162933]
[1738716626816,0.09137905,98208.0,98207.0,0.12219]
[1738716627737,0.0001069,98208.0,98207.0,0.12219]
[1738716627942,0.0001069,98208.0,98207.0,0.1832872]
[1738716628350,0.0001069,98208.0,98207.0,0.1852872]
[1738716628940,0.0001069,98208.0,98207.0,0.1862872]
[1738716629569,0.0001069,98208.0,98207.0,0.12519]
[1738716630681,0.0001069,98208.0,98207.0,0.12319]
[1738716630883,0.0001069,98208.0,98207.0,0.12219]
[1738716631083,0.0001069,98208.0,98207.0,0.12319]
[1738716631318,0.0001069,98208.0,98207.0,0.12419]
[1738716631519,0.0001069,98208.0,98207.0,0.18785172]
[1738716631919,0.0001069,98208.0,98207.0,0.12541179]
[1738716632297,0.0001069,98208.0,98207.0,0.12419]
[1738716633249,0.0001069,98208.0,98207.0,0.12541172]
[1738716633405,0.0001069,98208.0,98207.0,0.12419]
[1738716634229,0.16355196,98208.0,98207.0,0.12419]
[1738716634964,0.16355196,98208.0,98207.0,0.12319]
[1738716635165,0.16355196,98208.0,98207.0,0.12419]
[1738716635364,0.16355196,98208.0,98207.0,0.12319]
[1738716635752,0.16355196,98208.0,98207.0,0.12419]
[1738716636393,0.16355196,98208.0,98207.0,0.12319]
[1738716636800,0.16355196,98208.0,98207.0,0.13197741]
[1738716636999,0.16355196,98208.0,98207.0,0.13097741]
[1738716637203,0.19391525,98208.0,98207.0,0.12997741]
[1738716637379,0.19391525,98208.0,98207.0,0.13097741]
[1738716637583,0.19391525,98208.0,98207.0,0.13197741]
[1738716638724,0.21289346,98208.0,98207.0,0.13197741]
[1738716639022,0.21289346,98208.0,98207.0,0.13097741]
[1738716639673,0.0494484,98208.0,98207.0,0.17666005]
[1738716640080,0.0494484,98208.0,98207.0,0.17566005]
[1738716640524,0.0504484,98208.0,98207.0,0.17566005]
[1738716640925,0.0504484,98208.0,98207.0,0.17666005]
[1738716641074,0.02008511,98208.0,98207.0,0.13197741]
[1738716641276,0.01908511,98208.0,98207.0,0.13097741]
[1738716641496,0.01908511,98208.0,98207.0,0.13197741]
[1738716641926,0.01908511,98208.0,98207.0,0.13297741]
[1738716644739,0.01908511,98208.0,98207.0,0.19515325]
[1738716645495,0.01908511,98208.0,98207.0,0.13297741]
[1738716647835,0.04946698,98208.0,98207.0,0.13097741]
[1738716648012,0.04946698,98208.0,98207.0,0.12997741]
[1738716648214,0.04946698,98208.0,98207.0,0.25907741]
[1738716648414,0.04946698,98208.0,98207.0,0.26007741]
[1738716648748,0.04946698,98208.0,98207.0,0.33496325]
[1738716648886,0.04946698,98208.0,98207.0,0.33396325]
[1738716649089,0.01908511,98208.0,98207.0,0.33496325]
[1738716649524,0.01908511,98208.0,98207.0,0.25807741]
[1738716649726,0.01908511,98208.0,98207.0,0.26007741]
[1738716650084,0.01908511,98208.0,98207.0,0.25807741]
[1738716650282,0.01908511,98208.0,98207.0,0.26007741]
[1738716650604,0.01908511,98208.0,98207.0,0.25907741]
[1738716650950,0.01908511,98208.0,98207.0,0.26007741]
[1738716652367,0.01908511,98208.0,98207.0,0.31097251]
[1738716653561,0.04949758,98208.0,98207.0,0.31097251]
[1738716654289,0.04949758,98208.0,98207.0,0.26007741]
[1738716654512,0.04949758,98208.0,98207.0,0.21507741]
[1738716654855,0.04949758,98208.0,98207.0,0.13297741]
[1738716655820,0.04949758,98208.0,98207.0,0.00878741]
[1738716655821,0.21294264,98208.0,98207.0,0.00878741]
[1738716656041,0.21294264,98208.0,98207.0,0.00778741]
[1738716656042,0.33513164,98208.0,98207.0,0.00778741]
[1738716656249,0.33513164,98208.0,98207.0,0.002]
[1738716656469,0.33513164,98208.0,98198.0,0.162936]
[1738716656674,0.06106,98206.0,98198.0,0.162936]
[1738716656938,0.09140204,98200.0,98199.0,0.13228484]
[1738716657493,0.3159861,98200.0,98199.0,0.01008484]
[1738716657945,0.3159861,98200.0,98191.0,0.00022428]
[1738716657946,0.06106,98198.0,98191.0,0.00022428]
[1738716658100,0.06106,98196.0,98194.0,0.122206]
[1738716658279,0.16344506,98195.0,98194.0,0.122206]
[1738716658475,0.16344506,98195.0,98191.0,0.00022428]
[1738716658476,0.22556128,98195.0,98191.0,0.00022428]
[1738716658703,0.22556128,98195.0,98194.0,0.01009088]
[1738716658907,0.22556128,98195.0,98191.0,0.00022428]
[1738716659161,0.22556128,98195.0,98194.0,0.01009088]
[1738716659346,0.22556128,98195.0,98191.0,0.12343428]
[1738716659510,0.22556128,98195.0,98192.0,0.01009088]
[1738716659708,0.21283574,98195.0,98194.0,0.122207]
[1738716660091,0.21383574,98195.0,98192.0,0.122209]
[1738716660318,0.21383574,98195.0,98191.0,0.00122428]
[1738716660319,0.33504074,98195.0,98194.0,0.01009088]
[1738716660633,0.183269,98192.0,98191.0,0.00022428]
[1738716660853,0.28565406,98192.0,98191.0,0.00022428]
[1738716661213,0.34777204,98192.0,98191.0,0.00022428]
[1738716661900,0.34877204,98192.0,98191.0,0.00022428]
[1738716662102,0.37177204,98192.0,98191.0,0.00022428]
[1738716662357,0.37577204,98192.0,98191.0,0.00022428]
[1738716662534,0.52577204,98192.0,98191.0,0.00022428]
[1738716662703,0.55748926,98192.0,98191.0,0.00022428]
[1738716663924,0.38876304,98192.0,98191.0,0.00022428]
[1738716664127,0.122213,98190.0,98177.0,0.0777]
[1738716664352,0.10238506,98189.0,98178.0,0.122226]
[1738716664555,0.122214,98188.0,98181.0,0.122222]
[1738716664752,0.122217,98186.0,98178.0,0.01018916]
[1738716664952,0.10238506,98185.0,98180.0,0.122223]
[1738716665184,0.10238506,98185.0,98183.0,0.12222]
[1738716665337,0.06211798,98184.0,98181.0,0.13241116]
[1738716665532,0.10238506,98183.0,98181.0,0.13241116]
[1738716666054,0.10238506,98183.0,98182.0,0.122221]
[1738716666523,0.15177574,98183.0,98182.0,0.122221]
[1738716666724,0.15177574,98183.0,98182.0,0.13240457]
[1738716666926,0.04939068,98183.0,98182.0,0.13240457]
[1738716668405,0.05039068,98183.0,98182.0,0.13240457]
[1738716669561,0.04939068,98183.0,98182.0,0.13240457]
[1738716669823,0.16893601,98183.0,98182.0,0.01018357]
[1738716670006,0.29115601,98183.0,98182.0,0.01018357]
[1738716670329,0.29115601,98183.0,98182.0,0.00022428]
[1738716670453,0.27399574,98183.0,98182.0,0.00122428]
[1738716670865,0.15177574,98183.0,98182.0,0.00022428]
[1738716671266,0.15177574,98183.0,98182.0,0.01041108]
[1738716672007,0.1645039,98183.0,98182.0,0.01041108]
[1738716672778,0.1655039,98183.0,98182.0,0.01041108]
[1738716673117,0.15277574,98183.0,98182.0,0.01041108]
[1738716673263,0.21383574,98183.0,98182.0,0.01041108]
[1738716677708,0.21383574,98183.0,98182.0,0.00022428]
[1738716677889,0.21383574,98183.0,98182.0,0.01041035]
[1738716678110,0.0081868,98192.0,98182.0,0.01041035]
[1738716678111,0.0001068,98192.0,98191.0,0.12221]
[1738716678307,0.09106277,98197.0,98196.0,0.292204]
[1738716678520,0.09106277,98197.0,98196.0,0.52218906]
[1738716678723,0.09106277,98197.0,98196.0,0.53237287]
[1738716678923,0.00959477,98197.0,98196.0,0.53237287]
[1738716679181,0.06106,98244.0,98197.0,0.2422]
[1738716679382,0.06106,98239.0,98207.0,0.35439]
[1738716679835,0.06106,98239.0,98207.0,0.36448862]
[1738716680799,0.06106,98239.0,98207.0,0.36548862]
[1738716680995,0.06106,98239.0,98207.0,0.3756246]
[1738716681247,0.06106,98239.0,98207.0,0.44577206]
[1738716682469,0.06106,98239.0,98207.0,0.44777206]
[1738716683029,0.09108091,98240.0,98207.0,0.44777206]
[1738716683413,0.023,98249.0,98207.0,0.44777206]
[1738716684233,9e-07,98208.0,98207.0,0.55015712]
[1738716684607,9e-07,98208.0,98207.0,0.57086309]
[1738716685460,0.00804,98259.0,98232.0,0.202759]
[1738716685670,0.00804,98259.0,98232.0,0.2230349]
[1738716685853,0.00804,98259.0,98232.0,0.23310615]
[1738716686636,0.0011069,98233.0,98232.0,0.23310615]
[1738716688132,0.0011069,98233.0,98232.0,0.27930615]
[1738716688330,0.0041069,98233.0,98232.0,0.28941779]
[1738716688490,0.0011069,98233.0,98232.0,0.28941779]
[1738716688693,0.0001069,98233.0,98232.0,0.28941779]
[1738716688891,0.0001069,98233.0,98232.0,0.29241779]
[1738716689137,0.0001069,98233.0,98232.0,0.29041779]
[1738716689378,1.601e-05,98233.0,98232.0,0.29041779]
[1738716689528,1.601e-05,98233.0,98232.0,0.29141779]
[1738716689736,1.601e-05,98233.0,98232.0,0.40280285]
[1738716690451,1.601e-05,98233.0,98232.0,0.55280285]
[1738716691049,1.601e-05,98233.0,98232.0,0.55480285]
[1738716691447,1.601e-05,98233.0,98232.0,0.55280285]
[1738716691650,1.601e-05,98233.0,98232.0,0.55480285]
[1738716692220,1.601e-05,98233.0,98232.0,0.55380285]
[1738716692708,1.601e-05,98233.0,98232.0,0.55480285]
[1738716694070,1.601e-05,98233.0,98232.0,0.55502713]
[1738716698903,1.601e-05,98233.0,98232.0,1.31562713]
[1738716703884,1.601e-05,98233.0,98232.0,1.30562713]
[1738716704030,1.601e-05,98233.0,98232.0,1.00704207]
[1738716704433,1.601e-05,98233.0,98232.0,0.92644207]
[1738716704675,1.601e-05,98233.0,98232.0,0.14456617]
[1738716705059,1.601e-05,98233.0,98232.0,0.14356617]
[1738716705369,1.601e-05,98233.0,98232.0,0.14556617]
[1738716705530,1.601e-05,98233.0,98232.0,0.14256617]
[1738716705989,1.601e-05,98233.0,98232.0,0.14556617]
[1738716706442,1.601e-05,98233.0,98232.0,0.14456617]
[1738716706622,1.601e-05,98233.0,98232.0,0.14556617]
[1738716706949,1.601e-05,98233.0,98232.0,0.20216094]
[1738716707152,0.01897052,98233.0,98232.0,0.20016094]
[1738716707629,0.01897052,98233.0,98232.0,0.20216094]
[1738716709209,1.601e-05,98233.0,98232.0,0.20093949]
[1738716709411,1.601e-05,98233.0,98232.0,0.20216088]
[1738716709611,1.601e-05,98233.0,98232.0,0.20093949]
[1738716709810,1.601e-05,98233.0,98232.0,0.20216088]
[1738716711839,0.01901746,98233.0,98232.0,0.20216088]
[1738716712051,0.01901746,98233.0,98232.0,0.20093949]
[1738716714924,0.04943799,98233.0,98232.0,0.20093949]
[1738716716375,0.01901746,98233.0,98232.0,0.20093949]
[1738716716746,0.01901746,98233.0,98232.0,0.14556617]
[1738716718676,0.01901746,98233.0,98232.0,0.14678763]
[1738716720574,0.01901746,98233.0,98232.0,0.14556617]
[1738716722613,0.0494456,98233.0,98232.0,0.14556617]
[1738716723816,0.01901746,98233.0,98232.0,0.14556617]
[1738716725614,0.01901746,98233.0,98232.0,0.20294128]
[1738716730662,1.601e-05,98233.0,98232.0,0.20294128]
[1738716731325,1.601e-05,98233.0,98232.0,0.20194128]
[1738716731507,1.601e-05,98233.0,98232.0,0.19994128]
[1738716731723,1.601e-05,98233.0,98232.0,0.20216268]
[1738716731931,1.601e-05,98233.0,98232.0,0.14356617]
[1738716732702,1.601e-05,98233.0,98232.0,0.14556617]
[1738716733110,0.01906869,98233.0,98232.0,0.14678757]
[1738716733310,0.01906869,98233.0,98232.0,0.14556617]
[1738716736446,0.01906869,98233.0,98232.0,0.14678764]
[1738716736593,0.01906869,98233.0,98232.0,0.20428489]
[1738716736811,0.01906869,98233.0,98232.0,0.20306342]
[1738716737166,0.01906869,98233.0,98232.0,0.45544848]
[1738716737366,0.01906869,98233.0,98232.0,0.53274848]
[1738716737917,1.601e-05,98233.0,98232.0,0.53274848]
[1738716738122,1.601e-05,98233.0,98232.0,0.53174848]
[1738716739462,1.601e-05,98233.0,98232.0,0.53074848]
[1738716739808,1.601e-05,98233.0,98232.0,0.53274848]
[1738716740364,1.601e-05,98233.0,98232.0,0.86254848]
[1738716740949,1.601e-05,98233.0,98232.0,0.87254848]
[1738716742116,1.601e-05,98233.0,98232.0,0.86254848]
[1738716742739,1.601e-05,98233.0,98232.0,0.76016342]
[1738716742947,1.601e-05,98233.0,98232.0,0.68286342]
[1738716745042,0.122115,98268.0,98232.0,0.68286342]
[1738716745043,0.09085102,98264.0,98263.0,0.197621]
[1738716745256,0.05672369,98293.0,98290.0,0.122087]
[1738716745409,0.05672369,98293.0,98290.0,0.1505743]
[1738716745614,0.05672369,98293.0,98290.0,0.1617292]
[1738716745816,0.05672369,98293.0,98290.0,0.32193019]
[1738716746001,0.05672369,98293.0,98290.0,0.32070943]
[1738716746413,0.0011069,98291.0,98290.0,0.32070943]
[1738716746803,0.0001069,98291.0,98290.0,0.32170943]
[1738716747008,0.0001069,98291.0,98290.0,0.13302114]
[1738716747211,0.0001069,98291.0,98290.0,0.13402114]
[1738716747510,0.0001069,98291.0,98290.0,0.13202114]
[1738716748391,0.16355196,98291.0,98290.0,0.00993414]
[1738716748778,0.16355196,98291.0,98290.0,0.002]
[1738716748989,0.18252685,98291.0,98290.0,0.01183538]
[1738716749181,0.18252685,98291.0,98289.0,0.122088]
[1738716749362,0.16344506,98290.0,98289.0,0.122088]
[1738716750105,0.16344506,98290.0,98286.0,0.162788]
[1738716750699,0.16344506,98290.0,98283.0,0.122096]
[1738716750881,0.16344506,98290.0,98280.0,0.162799]
[1738716751082,0.28553306,98290.0,98281.0,0.122098]
[1738716751294,0.16344506,98290.0,98282.0,0.122097]
[1738716751494,0.16344506,98290.0,98279.0,0.1628]
[1738716751713,0.28553306,98290.0,98279.0,0.1628]
[1738716751900,0.16344506,98290.0,98271.0,0.08187536]
[1738716752101,0.16344506,98290.0,98285.0,0.122093]
[1738716752303,0.16544506,98290.0,98285.0,0.122093]
[1738716752511,0.16344506,98290.0,98286.0,0.122092]
[1738716752887,0.16344506,98290.0,98287.0,0.12209]
[1738716753089,0.0001069,98291.0,98287.0,0.12209]
[1738716753090,0.0001069,98291.0,98289.0,0.122088]
[1738716753977,0.0001069,98291.0,98290.0,0.00122084]
[1738716754464,0.0001069,98291.0,98289.0,0.122088]
[1738716755194,0.001,98290.0,98289.0,0.122088]
[1738716755414,0.0001069,98291.0,98289.0,0.122088]
[1738716755619,0.0001069,98291.0,98289.0,0.123088]
[1738716756324,0.0001069,98291.0,98289.0,0.124088]
[1738716756536,0.10249196,98291.0,98289.0,0.122088]
[1738716756946,0.10249196,98291.0,98290.0,0.00986048]
[1738716758033,0.16355196,98291.0,98290.0,0.00986048]
[1738716758447,0.16355196,98291.0,98289.0,0.001]
[1738716758658,0.16344506,98290.0,98289.0,0.002]
[1738716758857,0.16344506,98290.0,98289.0,0.001]
[1738716759059,0.16344506,98290.0,98283.0,0.122095]
[1738716759305,0.28553306,98290.0,98283.0,0.122095]
[1738716760005,0.06106,98288.0,98283.0,0.122095]
[1738716760212,0.16344506,98287.0,98283.0,0.123095]
[1738716761060,0.16344506,98287.0,98283.0,0.001]
[1738716761420,0.01895583,98286.0,98283.0,0.001]
[1738716761628,0.10238506,98285.0,98271.0,0.08187536]
[1738716761853,0.206155,98284.0,98283.0,0.001]
[1738716762057,0.30854006,98284.0,98283.0,0.001]
[1738716762265,0.06106,98280.0,98270.0,0.122111]
[1738716762470,0.183163,98278.0,98262.0,0.162828]
[1738716762819,0.28554906,98277.0,98269.0,0.122112]
[1738716763014,0.16344506,98277.0,98274.0,0.122107]
[1738716763223,0.10238506,98277.0,98274.0,0.122107]
[1738716763357,0.10238506,98277.0,98275.0,0.122105]
[1738716763562,0.04931043,98276.0,98272.0,0.122109]
[1738716763820,0.10238506,98275.0,98272.0,0.122109]
[1738716763978,0.10238506,98275.0,98273.0,0.122108]
[1738716764398,0.10238506,98275.0,98274.0,0.00988473]
[1738716764609,0.13273966,98275.0,98274.0,0.00988473]
[1738716764981,0.13273966,98275.0,98273.0,0.122108]
[1738716765180,0.13673966,98275.0,98274.0,0.00988747]
[1738716765385,0.13273966,98275.0,98274.0,0.00988747]
[1738716765784,0.13773966,98275.0,98274.0,0.00988747]
[1738716765985,0.05433702,98275.0,98274.0,0.00988747]
[1738716766689,0.05333702,98275.0,98274.0,0.00988747]
[1738716766883,0.02298242,98275.0,98274.0,0.00988747]
[1738716767290,0.01898242,98275.0,98274.0,0.00988747]
[1738716767633,0.01998242,98275.0,98274.0,0.00988747]
[1738716770221,0.05033702,98275.0,98274.0,0.00988747]
[1738716770528,0.15272208,98275.0,98274.0,0.00988747]
[1738716771855,0.16543719,98275.0,98274.0,0.00988747]
[1738716772422,0.16543719,98275.0,98270.0,0.122111]
[1738716772621,0.10238506,98274.0,98253.0,0.162843]
[1738716772878,0.10238506,98274.0,98271.0,0.12211]
[1738716773611,0.06205213,98273.0,98271.0,0.12211]
[1738716773814,0.10238506,98272.0,98271.0,0.12211]
[1738716774016,0.06205213,98273.0,98271.0,0.12211]
[1738716774722,0.06205213,98272.0,98271.0,0.12211]
[1738716775857,0.04933702,98272.0,98271.0,0.12211]
[1738716783155,0.11039702,98272.0,98271.0,0.12211]
[1738716785464,0.21278208,98272.0,98268.0,0.122115]
[1738716785666,0.06106,98270.0,98269.0,0.122113]
[1738716786248,0.16344506,98270.0,98264.0,0.00022428]
[1738716786449,0.16345506,98269.0,98268.0,0.122115]
[1738716787152,0.21279208,98269.0,98268.0,0.13199373]
[1738716788491,0.21479208,98269.0,98268.0,0.13199373]
[1738716790534,0.21279208,98269.0,98268.0,0.13199373]
[1738716791051,0.21479208,98269.0,98268.0,0.13199373]
[1738716794435,0.21279208,98269.0,98268.0,0.13199373]
[1738716794637,0.21379208,98269.0,98268.0,0.13199373]
[1738716794992,0.21379208,98269.0,98268.0,0.00987873]
[1738716795199,0.21379208,98269.0,98264.0,0.00022428]
[1738716795392,0.183188,98265.0,98264.0,0.00022428]
[1738716795548,0.16345506,98265.0,98264.0,0.00022428]
[1738716795758,0.28557306,98265.0,98264.0,0.00022428]
[1738716795969,0.30857306,98265.0,98264.0,0.00022428]
[1738716796280,0.34031461,98265.0,98264.0,0.00022428]
[1738716797056,0.38965163,98265.0,98264.0,0.00022428]
[1738716797263,0.35791008,98265.0,98264.0,0.00022428]
[1738716797619,0.35891008,98265.0,98264.0,0.00022428]
[1738716797803,0.36291008,98265.0,98264.0,0.00022428]
[1738716798582,0.44728021,98265.0,98264.0,0.00022428]
[1738716799453,0.37309282,98265.0,98264.0,0.00022428]
[1738716799809,0.55481234,98265.0,98264.0,0.00022428]
[1738716800370,0.52309282,98265.0,98264.0,0.00022428]
[1738716800914,0.55480384,98265.0,98264.0,0.00022428]
[1738716801333,0.52309282,98265.0,98264.0,0.00022428]
[1738716801531,0.55479766,98265.0,98264.0,0.00022428]
[1738716802068,0.55479794,98265.0,98264.0,0.00022428]
[1738716804319,0.65729266,98265.0,98264.0,0.00022428]
[1738716804518,0.62558754,98265.0,98264.0,0.00022428]
[1738716805115,0.62458754,98265.0,98264.0,0.00022428]
[1738716805317,0.65627063,98265.0,98264.0,0.00022428]
[1738716805566,0.65927063,98265.0,98264.0,0.00022428]
[1738716805930,0.66899015,98265.0,98264.0,0.00022428]
[1738716806349,0.67299015,98265.0,98264.0,0.00022428]
[1738716806726,0.56249543,98265.0,98264.0,0.00022428]
[1738716807132,0.56649543,98265.0,98264.0,0.00022428]
[1738716807350,0.54381234,98265.0,98264.0,0.00122428]
[1738716807553,0.53481234,98265.0,98264.0,0.00022428]
[1738716807755,0.58071234,98265.0,98264.0,0.00022428]
[1738716807997,0.72919293,98265.0,98264.0,0.00122428]
[1738716808244,0.72019293,98265.0,98264.0,0.00022428]
[1738716808415,0.06107,98243.0,98239.0,0.08187536]
[1738716808612,0.173,98264.0,98239.0,0.08187536]
[1738716808613,0.06107,98241.0,98239.0,0.08187536]
[1738716808825,0.16345506,98240.0,98239.0,0.08187536]
[1738716808998,0.16345506,98240.0,98236.0,0.122153]
[1738716809195,0.16345506,98240.0,98237.0,0.122153]
[1738716809400,0.16345506,98240.0,98238.0,0.122152]
[1738716809614,0.16345506,98240.0,98235.0,0.162874]
[1738716809799,0.06107,98238.0,98235.0,0.162874]
[1738716810131,0.16345506,98237.0,98236.0,0.122154]
[1738716810692,0.21279208,98237.0,98233.0,0.0756]
[1738716810915,0.33494508,98237.0,98232.0,0.00022428]
[1738716811111,0.21279208,98237.0,98232.0,0.00022428]
[1738716811314,0.21379208,98237.0,98233.0,0.122158]
[1738716811559,0.21279208,98237.0,98232.0,0.00022428]
[1738716811794,0.21279208,98237.0,98233.0,0.122158]
[1738716812129,0.33494608,98237.0,98232.0,0.00022428]
[1738716812350,0.06107,98235.0,98233.0,0.122158]
[1738716812549,0.16345506,98234.0,98232.0,0.00022428]
[1738716812752,0.16345506,98234.0,98233.0,0.122158]
[1738716813794,0.21279208,98234.0,98233.0,0.122158]
[1738716814475,0.21279208,98234.0,98233.0,0.123158]
[1738716814681,0.21279208,98234.0,98233.0,0.122158]
[1738716815057,0.21479208,98234.0,98233.0,0.122158]
[1738716816800,0.21479208,98234.0,98233.0,0.13213472]
[1738716817413,0.21279208,98234.0,98233.0,0.13213472]
[1738716817774,0.21379208,98234.0,98233.0,0.13213472]
[1738716821572,0.05033702,98234.0,98233.0,0.13213472]
[1738716821776,0.05033702,98234.0,98233.0,0.26135617]
[1738716821987,0.05033702,98234.0,98233.0,0.31886947]
[1738716822602,0.05033702,98234.0,98233.0,0.26013472]
[1738716822980,0.01898242,98234.0,98233.0,0.26013472]
[1738716823182,0.08005242,98234.0,98233.0,0.26013472]
[1738716823435,0.08005242,98234.0,98233.0,0.26113472]
[1738716824499,0.08005242,98234.0,98233.0,0.26313472]
[1738716824695,0.08005242,98234.0,98233.0,0.3222716]
[1738716824903,0.08005242,98234.0,98233.0,0.33245464]
[1738716825992,0.08005242,98234.0,98233.0,0.27354204]
[1738716835411,0.06107,98256.0,98253.0,0.122133]
[1738716835712,0.06107,98254.0,98253.0,0.122133]
[1738716835923,0.16345506,98254.0,98253.0,0.122133]
[1738716836117,0.16345506,98254.0,98250.0,0.162849]
[1738716836280,0.06107,98252.0,98251.0,0.122136]
[1738716836484,0.16345506,98252.0,98251.0,0.122136]
[1738716838224,0.16345506,98252.0,98233.0,0.13840732]
[1738716838225,0.16345506,98252.0,98247.0,0.122141]
[1738716838480,0.14116657,98254.0,98233.0,0.08232428]
[1738716838481,0.06107,98250.0,98233.0,0.08232428]
[1738716838666,0.06107,98248.0,98243.0,0.122146]
[1738716838874,0.06107,98246.0,98237.0,0.16287]
[1738716839119,0.06107,98244.0,98243.0,0.122146]
[1738716840359,0.08010457,98244.0,98243.0,0.122146]
[1738716840758,0.20073859,98244.0,98233.0,0.08232428]
[1738716840995,0.183217,98242.0,98236.0,0.122154]
[1738716841193,0.06107,98240.0,98237.0,0.122153]
[1738716841387,0.06107,98238.0,98235.0,0.122155]